bitfinex-derivatives/quotes_BTCF0:USTF0_20241210
["timestamp","ask_amount","ask_price","bid_price","bid_amount"]
[1733847973255,0.00014518,95842.0,95841.0,0.35028]
[1733847973864,0.092103,95870.0,95860.0,0.052135]
[1733847974053,0.12280055,95909.0,95877.0,0.052126]
[1733847974357,0.16070152,95918.0,95907.0,0.05211]
[1733847974358,0.53570655,95915.0,95907.0,0.05211]
[1733847974557,0.53570655,95915.0,95899.0,0.29057097]
[1733847974558,0.412906,95915.0,95899.0,0.29057097]
[1733847974758,0.412906,95915.0,95899.0,0.23856691]
[1733847974759,0.3608,95915.0,95899.0,0.23856691]
[1733847974964,0.3608,95907.0,95885.0,0.3608]
[1733847975156,0.052117,95894.0,95887.0,0.052121]
[1733847975350,0.3608,95907.0,95885.0,0.3608]
[1733847975649,0.052113,95902.0,95897.0,0.052115]
[1733847976459,0.052114,95900.0,95895.0,0.052116]
[1733847976669,0.3608,95907.0,95890.0,0.29057097]
[1733847976851,0.3608,95907.0,95879.0,0.00156447]
[1733847976852,0.052121,95887.0,95879.0,0.00156447]
[1733847977164,6e-05,95880.0,95879.0,0.00156447]
[1733847977860,6e-05,95880.0,95870.0,0.29057097]
[1733847978058,0.052185,95880.0,95875.0,0.052127]
[1733847978359,0.052185,95880.0,95877.0,0.052126]
[1733847978950,0.052185,95880.0,95869.0,1.51081942]
[1733847978951,0.05213,95870.0,95869.0,1.50012]
[1733847979262,0.41293,95870.0,95869.0,0.00012]
[1733847979858,0.6608,95870.0,95850.0,0.00156483]
[1733847980063,0.41294,95851.0,95850.0,0.00156483]
[1733847980366,0.413,95851.0,95850.0,0.00156483]
[1733847981064,0.052141,95849.0,95847.0,1.45008077]
[1733847981360,6e-05,95848.0,95847.0,1.50158377]
[1733847981949,0.36086,95848.0,95847.0,1.44944077]
[1733847982369,6e-05,95848.0,95847.0,1.44944077]
[1733847983561,0.00106,95848.0,95847.0,1.45144077]
[1733847984065,6e-05,95848.0,95846.0,0.06274748]
[1733847984263,0.00106,95848.0,95847.0,0.011]
[1733847984463,0.3608,95869.0,95864.0,0.052133]
[1733847984653,0.052132,95867.0,95864.0,0.052133]
[1733847985061,0.3608,95869.0,95868.0,0.052131]
[1733847985360,0.3608,95876.0,95872.0,0.052129]
[1733847985757,0.3608,95876.0,95875.0,1.50012]
[1733847987059,0.3608,95876.0,95875.0,0.00012]
[1733847987258,0.001,95876.0,95875.0,0.00012]
[1733847987662,0.001,95876.0,95875.0,0.01077295]
[1733847987964,0.002,95876.0,95875.0,1.51677295]
[1733847988159,0.001,95876.0,95875.0,1.51777295]
[1733847988565,0.052126,95877.0,95875.0,1.51477295]
[1733847988970,0.052126,95877.0,95876.0,0.00012]
[1733847989867,0.053126,95877.0,95876.0,0.00012]
[1733847990166,0.053126,95877.0,95875.0,0.055807]
[1733847990362,0.053126,95877.0,95875.0,0.055127]
[1733847990566,6e-05,95876.0,95875.0,0.055127]
[1733847991167,6e-05,95876.0,95875.0,1.56883601]
[1733847991168,0.00106,95876.0,95875.0,1.56883601]
[1733847991369,0.001,95877.0,95875.0,1.56883601]
[1733847991561,0.00010491,95879.0,95878.0,0.052126]
[1733847991863,0.12280055,95910.0,95908.0,0.052109]
[1733847992068,0.17490955,95910.0,95908.0,0.052109]
[1733847992258,0.17490955,95910.0,95896.0,0.3608]
[1733847992259,0.052109,95910.0,95909.0,0.00012]
[1733847992662,0.05217854,95910.0,95909.0,0.00012]
[1733847993062,0.05217854,95910.0,95845.0,0.37061955]
[1733847993063,6.954e-05,95910.0,95894.0,0.3608]
[1733847993260,6.954e-05,95910.0,95909.0,0.052109]
[1733847993770,6.954e-05,95910.0,95903.0,0.052112]
[1733847993961,6.954e-05,95910.0,95894.0,0.052117]
[1733847994156,0.3608,95903.0,95882.0,0.74779184]
[1733847994357,0.052111,95905.0,95902.0,0.052112]
[1733847994571,0.052111,95905.0,95903.0,1.5]
[1733847994770,0.052111,95905.0,95904.0,0.00012]
[1733847996175,0.052111,95905.0,95882.0,0.75798988]
[1733847996176,0.052121,95888.0,95887.0,0.052121]
[1733847998675,0.412931,95869.0,95868.0,0.00012]
[1733847998877,0.412991,95869.0,95868.0,0.00012]
[1733847999175,0.052132,95866.0,95864.0,0.0105765]
[1733847999369,0.3608,95865.0,95860.0,0.2470797]
[1733847999570,0.052135,95861.0,95860.0,0.2470797]
[1733847999764,0.052195,95861.0,95860.0,0.2470797]
[1733848000075,0.052136,95859.0,95858.0,0.00156448]
[1733848001075,0.052136,95859.0,95833.0,0.2470797]
[1733848001076,0.05215,95834.0,95833.0,0.2470797]
[1733848001275,0.3608,95834.0,95827.0,0.2470797]
[1733848001479,0.052153,95828.0,95827.0,0.2470797]
[1733848001780,0.052153,95828.0,95824.0,0.36144863]
[1733848001781,0.052154,95827.0,95824.0,0.36144863]
[1733848002169,0.412946,95842.0,95826.0,0.30867594]
[1733848002470,0.052148,95837.0,95830.0,0.29057097]
[1733848002779,0.052148,95837.0,95824.0,0.36144863]
[1733848003481,0.052153,95828.0,95824.0,0.36144863]
[1733848003677,0.052154,95827.0,95825.0,0.2927219]
[1733848003983,0.052151,95831.0,95830.0,0.002]
[1733848004679,0.053153,95828.0,95827.0,0.009]
[1733848004884,0.053153,95828.0,95826.0,1.50064]
[1733848005181,0.053153,95828.0,95826.0,0.009]
[1733848005578,6.954e-05,95827.0,95826.0,0.009]
[1733848006875,6.954e-05,95827.0,95826.0,0.061154]
[1733848007077,0.00106954,95827.0,95826.0,0.063154]
[1733848007480,0.00106954,95827.0,95826.0,1.5741196]
[1733848007673,0.36186954,95827.0,95826.0,1.5129656]
[1733848007869,0.36186954,95827.0,95826.0,1.502]
[1733848008282,0.36186954,95827.0,95826.0,1.44987594]
[1733848008584,0.00206954,95827.0,95826.0,1.46957475]
[1733848008883,0.00206954,95827.0,95826.0,1.76957475]
[1733848009078,0.3608,95856.0,95855.0,0.052138]
[1733848009585,0.052195,95861.0,95855.0,0.052138]
[1733848009586,0.052195,95861.0,95859.0,0.052136]
[1733848009980,0.052195,95861.0,95860.0,0.00012]
[1733848010989,0.052143,95846.0,95845.0,0.24898897]
[1733848011189,0.052143,95846.0,95839.0,0.00156512]
[1733848011190,0.412943,95846.0,95839.0,0.00156512]
[1733848011375,0.052149,95835.0,95834.0,0.26067756]
[1733848011776,0.052209,95835.0,95834.0,0.10618456]
[1733848011975,0.052158,95819.0,95818.0,0.2490818]
[1733848012197,0.773758,95819.0,95818.0,9.283e-05]
[1733848012384,0.773818,95819.0,95818.0,9.283e-05]
[1733848013285,0.413018,95819.0,95818.0,9.283e-05]
[1733848013983,0.413018,95819.0,95818.0,0.00109283]
[1733848014382,0.36086,95819.0,95812.0,0.24908398]
[1733848014905,0.36086,95819.0,95818.0,0.002]
[1733848014906,0.412958,95819.0,95818.0,0.002]
[1733848015080,0.773758,95819.0,95818.0,0.002]
[1733848015482,8.051e-05,95819.0,95818.0,0.002]
[1733848015883,8.051e-05,95819.0,95818.0,1.502]
[1733848016197,8.051e-05,95819.0,95818.0,1.9135]
[1733848016488,8.051e-05,95819.0,95818.0,1.9185]
[1733848016890,0.00108051,95819.0,95818.0,1.9185]
[1733848017394,0.00108051,95819.0,95818.0,0.4185]
[1733848018282,0.00108051,95819.0,95818.0,0.005]
[1733848018488,0.36188051,95819.0,95818.0,1.505]
[1733848018691,0.36188051,95819.0,95811.0,0.06282638]
[1733848018692,0.052161,95813.0,95811.0,0.06282638]
[1733848019187,0.36188051,95819.0,95811.0,0.06282638]
[1733848019188,0.00108051,95819.0,95818.0,0.052158]
[1733848019396,0.00108051,95819.0,95818.0,0.059158]
[1733848019691,0.00108051,95819.0,95818.0,0.059278]
[1733848019988,8.051e-05,95819.0,95818.0,0.059278]
[1733848020379,5.1e-07,95819.0,95818.0,0.30715394]
[1733848020581,5.1e-07,95819.0,95818.0,2.174978]
[1733848021282,6e-05,95835.0,95818.0,2.174978]
[1733848021487,6e-05,95835.0,95834.0,0.41295]
[1733848021697,6e-05,95835.0,95834.0,0.76371]
[1733848022291,6e-05,95835.0,95817.0,0.3608]
[1733848022292,0.052158,95819.0,95817.0,0.3608]
[1733848022495,0.052162,95812.0,95811.0,0.061162]
[1733848022699,0.052162,95812.0,95811.0,0.052162]
[1733848023085,0.36086,95818.0,95805.0,0.3506]
[1733848023086,0.483916,95818.0,95805.0,0.3506]
[1733848023395,0.052225,95806.0,95805.0,0.3506]
[1733848023583,0.052225,95806.0,95805.0,0.29847594]
[1733848023783,6e-05,95806.0,95805.0,0.30915291]
[1733848023990,0.48447601,95818.0,95805.0,0.30915291]
[1733848023991,0.00062001,95818.0,95817.0,0.052159]
[1733848024197,0.123116,95835.0,95834.0,0.05215]
[1733848024399,6e-05,95835.0,95834.0,0.05215]
[1733848024587,6e-05,95835.0,95834.0,1.55227]
[1733848026095,0.48392872,95835.0,95834.0,0.00012]
[1733848026295,0.36186,95835.0,95834.0,0.00912]
[1733848026596,0.00106,95835.0,95834.0,1.5]
[1733848027586,0.00206,95835.0,95834.0,1.5]
[1733848027987,0.00206,95835.0,95834.0,1.509]
[1733848028500,0.00106,95835.0,95834.0,1.5]
[1733848028691,0.00206,95835.0,95834.0,1.508]
[1733848029391,7e-08,95847.0,95846.0,0.052143]
[1733848029700,0.10885718,95863.0,95862.0,0.052134]
[1733848029888,0.54680776,95877.0,95874.0,0.052128]
[1733848030091,0.54624775,95877.0,95874.0,1.912928]
[1733848030290,0.4274,95911.0,95887.0,0.052121]
[1733848030594,0.3608,95924.0,95887.0,0.763641]
[1733848030797,0.3608,95924.0,95911.0,0.052108]
[1733848031302,0.3608,95924.0,95911.0,0.052228]
[1733848031499,0.48009501,95934.0,95911.0,0.052228]
[1733848031693,0.3608,95931.0,95911.0,0.052228]
[1733848031996,0.3608,95931.0,95922.0,0.052101]
[1733848032201,0.05069355,95930.0,95922.0,0.052101]
[1733848032593,0.05069355,95930.0,95917.0,0.36077694]
[1733848032794,0.3608,95923.0,95911.0,0.053108]
[1733848032990,0.3608,95923.0,95911.0,0.001]
[1733848032991,0.3618,95912.0,95911.0,0.001]
[1733848033501,0.052112,95903.0,95881.0,0.402644]
[1733848033798,0.412972,95903.0,95899.0,0.01052107]
[1733848033998,0.412972,95903.0,95885.0,0.052122]
[1733848034204,0.36086,95903.0,95885.0,0.052122]
[1733848034400,0.3608,95892.0,95881.0,0.35052]
[1733848034595,0.12306727,95912.0,95906.0,0.05211]
[1733848034798,6e-05,95918.0,95900.0,0.29057097]
[1733848035199,6e-05,95918.0,95910.0,1.5]
[1733848035504,6e-05,95918.0,95916.0,0.052105]
[1733848035805,6e-05,95918.0,95910.0,1.50078094]
[1733848036004,6e-05,95918.0,95910.0,1.49998094]
[1733848036603,0.052107,95912.0,95907.0,0.05211]
[1733848036904,0.3608,95914.0,95907.0,0.05211]
[1733848036905,6e-05,95908.0,95907.0,0.05211]
[1733848037202,6e-05,95908.0,95907.0,1.55211]
[1733848037699,6e-05,95908.0,95907.0,1.91291]
[1733848038306,6e-05,95908.0,95899.0,0.37165397]
[1733848038494,6e-05,95908.0,95906.0,0.05211]
[1733848038695,0.052164,95918.0,95899.0,0.37163991]
[1733848038908,0.052109,95909.0,95907.0,0.001]
[1733848039118,0.052114,95900.0,95896.0,0.00156425]
[1733848039298,0.3608,95897.0,95893.0,0.01333892]
[1733848039606,0.052124,95881.0,95875.0,0.35044]
[1733848039801,0.3608,95880.0,95877.0,0.052126]
[1733848039997,0.36086,95880.0,95877.0,0.052126]
[1733848040193,6e-05,95880.0,95879.0,0.31456508]
[1733848040395,6e-05,95880.0,95879.0,0.67536508]
[1733848041400,6e-05,95880.0,95879.0,0.68036508]
[1733848041705,6e-05,95897.0,95879.0,0.68035702]
[1733848041914,6e-05,95897.0,95895.0,0.052116]
[1733848043108,0.3608,95921.0,95895.0,0.052116]
[1733848043314,0.3608,95921.0,95916.0,0.052105]
[1733848043315,0.3608,95917.0,95916.0,0.052105]
[1733848044011,0.3608,95917.0,95916.0,1.5]
[1733848044198,0.3608,95917.0,95914.0,0.3504]
[1733848044605,0.3608,95917.0,95915.0,1.5]
[1733848044807,0.3608,95917.0,95914.0,0.41627492]
[1733848045213,6e-05,95915.0,95914.0,0.41627492]
[1733848045414,6e-05,95915.0,95914.0,0.36416892]
[1733848045605,0.052166,95915.0,95914.0,0.36416892]
[1733848046807,0.054166,95915.0,95914.0,0.36416892]
[1733848047307,0.054166,95915.0,95914.0,0.3504]
[1733848047518,0.056166,95915.0,95914.0,0.3504]
[1733848047808,0.056166,95915.0,95914.0,0.29827594]
[1733848048016,0.054166,95915.0,95898.0,1.5008]
[1733848048218,0.412914,95899.0,95898.0,1.5]
[1733848048421,0.412974,95899.0,95898.0,1.5]
[1733848048723,0.052121,95887.0,95886.0,0.3504]
[1733848049313,6e-05,95887.0,95860.0,0.30955548]
[1733848049512,0.412929,95873.0,95872.0,0.052129]
[1733848049729,0.3608,95891.0,95872.0,0.052129]
[1733848050012,0.3608,95902.0,95872.0,0.052129]
[1733848050013,0.3608,95902.0,95880.0,0.29057097]
[1733848050214,0.3608,95902.0,95901.0,0.052113]
[1733848050604,0.00056001,95910.0,95897.0,0.00012]
[1733848050814,0.3608,95911.0,95901.0,0.052113]
[1733848051009,0.412908,95911.0,95909.0,0.00012]
[1733848051215,0.412908,95911.0,95910.0,0.00012]
[1733848051511,0.052116,95895.0,95894.0,0.3504]
[1733848051704,0.412916,95895.0,95894.0,0.3504]
[1733848051904,0.412976,95895.0,95894.0,0.36398121]
[1733848052511,0.412976,95895.0,95894.0,0.36498121]
[1733848052913,0.412976,95895.0,95868.0,0.36168]
[1733848053116,0.3608,95876.0,95868.0,0.3608]
[1733848053315,6e-05,95869.0,95868.0,0.3608]
[1733848053514,6e-05,95869.0,95858.0,0.052136]
[1733848053515,0.052131,95868.0,95858.0,0.052136]
[1733848053708,0.412931,95868.0,95845.0,0.3504]
[1733848054013,0.36086,95868.0,95850.0,0.24013864]
[1733848054218,0.36086,95868.0,95861.0,0.052135]
[1733848054518,0.3608,95868.0,95858.0,1.5]
[1733848054718,0.412927,95876.0,95858.0,1.8608]
[1733848054919,9.579e-05,95875.0,95873.0,0.052128]
[1733848055518,9.579e-05,95875.0,95867.0,0.005]
[1733848055708,0.052131,95870.0,95869.0,0.05213]
[1733848055904,0.052129,95874.0,95873.0,0.052128]
[1733848056610,9.579e-05,95875.0,95869.0,0.05213]
[1733848056913,9.579e-05,95875.0,95874.0,0.052248]
[1733848057618,7.9e-07,95875.0,95874.0,1.852248]
[1733848057914,7.9e-07,95875.0,95874.0,1.552248]
[1733848058810,7.9e-07,95875.0,95874.0,1.56554653]
[1733848059108,7.9e-07,95875.0,95874.0,1.86554653]
[1733848059315,0.12306727,95900.0,95899.0,0.052114]
[1733848059611,0.12306727,95900.0,95899.0,0.763434]
[1733848060121,0.12306727,95900.0,95899.0,2.26342394]
[1733848060311,0.12311109,95900.0,95899.0,2.26342394]
[1733848060618,0.12311109,95900.0,95899.0,1.902634]
[1733848060815,0.12311109,95900.0,95899.0,0.35052]
[1733848061011,0.53602509,95900.0,95899.0,0.35052]
[1733848061213,0.48391109,95900.0,95899.0,0.41640488]
[1733848061411,4.382e-05,95900.0,95899.0,1.91640488]
[1733848061809,0.00104382,95900.0,95899.0,1.92340488]
[1733848062909,4.382e-05,95900.0,95899.0,1.81216682]
[1733848063110,0.00104382,95900.0,95899.0,0.32016682]
[1733848064218,0.00104382,95900.0,95876.0,0.3608]
[1733848064219,0.00104382,95900.0,95894.0,1.5]
[1733848064409,0.00104382,95900.0,95872.0,0.3504]
[1733848064410,0.61044382,95900.0,95886.0,0.01344162]
[1733848064720,6e-05,95895.0,95894.0,0.052117]
[1733848066017,6e-05,95895.0,95886.0,0.00899294]
[1733848066414,6e-05,95895.0,95886.0,0.06111394]
[1733848066415,6e-05,95887.0,95886.0,0.06111394]
[1733848067016,6e-05,95887.0,95886.0,1.56111394]
[1733848067613,6e-05,95887.0,95886.0,1.552121]
[1733848068424,0.00106,95887.0,95886.0,1.552121]
[1733848069131,0.00206,95887.0,95886.0,1.49999694]
[1733848069716,0.00206,95887.0,95886.0,1.55211794]
[1733848070022,0.414981,95887.0,95880.0,0.01310931]
[1733848070216,0.052124,95881.0,95879.0,0.00156423]
[1733848070412,0.4169,95880.0,95879.0,0.00156423]
[1733848070721,0.41696,95880.0,95879.0,0.01498942]
[1733848070922,0.41696,95880.0,95879.0,0.00156423]
[1733848071520,0.052136,95860.0,95855.0,0.052138]
[1733848071717,0.052136,95860.0,95858.0,0.052136]
[1733848072118,0.3608,95865.0,95853.0,0.36404326]
[1733848072318,0.052135,95860.0,95859.0,0.052136]
[1733848072826,0.052135,95860.0,95847.0,0.00010148]
[1733848072827,0.052139,95854.0,95847.0,0.00010148]
[1733848073127,0.052145,95842.0,95837.0,0.01316711]
[1733848073327,0.412945,95842.0,95837.0,0.01316711]
[1733848073523,0.413005,95842.0,95834.0,0.31134325]
[1733848074229,0.413005,95842.0,95836.0,0.01346291]
[1733848074523,0.36186,95842.0,95836.0,0.01346291]
[1733848074728,0.3608,95837.0,95834.0,0.31134325]
[1733848074932,0.052149,95835.0,95834.0,0.31134325]
[1733848075120,0.052209,95835.0,95834.0,0.25921919]
[1733848075427,6e-05,95835.0,95834.0,0.05215]
[1733848075827,6e-05,95835.0,95834.0,0.065543]
[1733848077022,6e-05,95835.0,95834.0,1.565543]
[1733848077541,0.00106,95835.0,95834.0,1.565543]
[1733848077825,0.00206,95835.0,95834.0,1.571543]
[1733848078231,0.00206,95835.0,95834.0,1.519393]
[1733848078928,0.054209,95835.0,95834.0,1.519393]
[1733848079622,0.054209,95835.0,95834.0,1.506]
[1733848079831,0.052158,95818.0,95817.0,0.00012]
[1733848080022,0.05216,95815.0,95808.0,0.00093289]
[1733848080227,0.36086,95818.0,95808.0,0.00013289]
[1733848080423,6e-05,95815.0,95814.0,0.05372555]
[1733848080627,6e-05,95815.0,95814.0,0.05216]
[1733848081237,6e-05,95815.0,95800.0,0.04800883]
[1733848081433,0.3608,95801.0,95800.0,0.04800883]
[1733848081729,6e-05,95801.0,95800.0,0.04800883]
[1733848081922,6e-05,95801.0,95800.0,0.06141721]
[1733848083033,6e-05,95801.0,95800.0,0.42221721]
[1733848083520,6e-05,95801.0,95800.0,0.06141721]
[1733848083721,0.00106,95801.0,95800.0,0.06141721]
[1733848083927,0.3619813,95801.0,95780.0,0.00166004]
[1733848084129,0.412978,95781.0,95780.0,0.00166004]
[1733848084326,6e-05,95781.0,95776.0,0.052181]
[1733848084723,0.052182,95776.0,95767.0,0.38617509]
[1733848084927,0.052183,95773.0,95768.0,0.052185]
[1733848085132,0.36086,95777.0,95767.0,0.31318059]
[1733848085133,0.3608,95777.0,95767.0,0.31318059]
[1733848085533,0.3608,95777.0,95768.0,0.052186]
[1733848085831,0.3608,95777.0,95775.0,0.052182]
[1733848086026,0.3608,95795.0,95769.0,0.3608]
[1733848086027,0.3608,95787.0,95769.0,0.3608]
[1733848086332,0.3608,95795.0,95761.0,0.00078382]
[1733848086333,0.052189,95762.0,95761.0,0.00078382]
[1733848086634,0.36088491,95762.0,95761.0,0.01432889]
[1733848086836,8.491e-05,95762.0,95761.0,0.00078382]
[1733848087339,8.491e-05,95762.0,95756.0,0.01342937]
[1733848087526,8.491e-05,95762.0,95750.0,0.61897097]
[1733848087837,0.00108491,95762.0,95760.0,0.05219]
[1733848088525,0.05427391,95762.0,95760.0,0.05219]
[1733848088932,0.05027391,95762.0,95760.0,0.05219]
[1733848089426,0.05027391,95762.0,95750.0,0.34073743]
[1733848089427,0.052186,95768.0,95754.0,0.052193]
[1733848089628,0.05219,95759.0,95755.0,0.052192]
[1733848089823,0.00011367,95758.0,95757.0,0.052192]
[1733848090329,0.00011367,95758.0,95750.0,0.3276]
[1733848090640,0.00011367,95758.0,95750.0,0.34100246]
[1733848090935,0.00011367,95758.0,95756.0,0.052192]
[1733848091331,0.00111367,95758.0,95756.0,0.052192]
[1733848091632,0.00211367,95758.0,95756.0,0.052192]
[1733848091842,0.05430467,95758.0,95756.0,0.052192]
[1733848092042,0.052195,95751.0,95750.0,0.01340246]
[1733848092230,0.052202,95737.0,95736.0,0.00156691]
[1733848092532,0.052202,95737.0,95706.0,0.3608]
[1733848092533,0.052214,95717.0,95712.0,0.07265139]
[1733848092753,0.3608,95725.0,95714.0,0.00156737]
[1733848092932,0.3608,95715.0,95714.0,0.00156737]
[1733848093327,0.052218,95709.0,95708.0,0.31394058]
[1733848093830,6e-05,95709.0,95708.0,0.31394058]
[1733848094432,6e-05,95709.0,95708.0,0.01373727]
[1733848094639,0.053278,95709.0,95708.0,0.002]
[1733848094836,0.414078,95709.0,95708.0,0.002]
[1733848095740,0.415078,95709.0,95708.0,0.002]
[1733848096139,0.052225,95695.0,95694.0,0.00011566]
[1733848096436,0.052243,95663.0,95649.0,0.3608]
[1733848096638,0.052243,95663.0,95655.0,0.61812064]
[1733848096935,0.352303,95663.0,95655.0,0.61812064]
[1733848097142,0.052245,95659.0,95655.0,0.61812064]
[1733848097340,0.00013556,95658.0,95655.0,0.61728064]
[1733848097531,0.052307,95656.0,95655.0,0.61728064]
[1733848097732,0.052307,95656.0,95643.0,0.0136592]
[1733848097733,0.052253,95644.0,95643.0,0.0136592]
[1733848097941,0.05226,95633.0,95631.0,0.00156872]
[1733848098133,0.3608,95635.0,95631.0,0.00156872]
[1733848098340,6e-05,95632.0,95631.0,0.01514312]
[1733848099443,6e-05,95632.0,95627.0,0.3608]
[1733848099742,6e-05,95628.0,95618.0,0.02078625]
[1733848100038,0.052256,95639.0,95618.0,0.02078625]
[1733848100039,0.001,95632.0,95618.0,0.02078625]
[1733848100240,0.001,95632.0,95630.0,0.052261]
[1733848100547,0.001,95632.0,95631.0,0.00012]
[1733848100739,0.3618,95644.0,95631.0,0.00012]
[1733848100937,0.3618,95644.0,95642.0,0.052254]
[1733848101131,0.3608,95644.0,95643.0,0.00012]
[1733848102441,0.3608,95644.0,95631.0,0.0140164]
[1733848102737,0.3618,95644.0,95642.0,0.052254]
[1733848102943,0.3608,95679.0,95637.0,0.3608]
[1733848103140,0.052243,95663.0,95657.0,0.052246]
[1733848103336,0.05224,95668.0,95657.0,0.052366]
[1733848103833,0.052245,95659.0,95657.0,0.00012]
[1733848104648,0.3608,95671.0,95657.0,0.01401071]
[1733848105144,0.05224,95668.0,95657.0,0.01401071]
[1733848105343,0.36093556,95658.0,95657.0,0.01401071]
[1733848105543,0.66093556,95658.0,95618.0,0.3608]
[1733848105846,0.3608,95631.0,95616.0,0.3608]
[1733848106143,0.3608,95642.0,95625.0,0.052263]
[1733848106346,0.3608,95642.0,95624.0,0.3608]
[1733848106347,0.3608,95642.0,95632.0,0.052259]
[1733848106532,0.413054,95642.0,95641.0,0.00012]
[1733848107037,0.052268,95618.0,95616.0,0.01368785]
[1733848107247,0.052271,95612.0,95611.0,0.00011912]
[1733848107548,0.413131,95612.0,95611.0,0.00011912]
[1733848108544,0.052277,95601.0,95600.0,0.04956401]
[1733848108737,0.413077,95601.0,95600.0,0.04956401]
[1733848108936,0.413137,95601.0,95600.0,0.04956401]
[1733848109153,0.413137,95601.0,95580.0,0.00156947]
[1733848109154,0.052288,95581.0,95580.0,0.00156947]
[1733848109346,0.773888,95581.0,95580.0,0.00156947]
[1733848109553,0.77406936,95581.0,95580.0,0.00156947]
[1733848110552,1.07406936,95581.0,95580.0,0.00156947]
[1733848111151,1.07406936,95581.0,95571.0,0.24576748]
[1733848111152,0.052293,95572.0,95571.0,0.24576748]
[1733848111445,0.052305,95549.0,95540.0,0.00157018]
[1733848111647,0.052309,95541.0,95540.0,0.00157018]
[1733848111946,0.052294,95570.0,95540.0,0.00157018]
[1733848111947,0.052301,95557.0,95540.0,0.37637972]
[1733848112147,0.10471153,95572.0,95548.0,0.3608]
[1733848112148,0.3608,95564.0,95548.0,0.3608]
[1733848112351,0.052301,95558.0,95556.0,0.00012]
[1733848112551,0.7216,95557.0,95494.0,0.67956193]
[1733848112743,0.65137097,95520.0,95502.0,0.00523549]
[1733848113054,0.3608,95518.0,95517.0,0.052323]
[1733848113551,0.3608842,95518.0,95502.0,0.00523549]
[1733848113850,0.3608842,95518.0,95503.0,0.05233]
[1733848114049,0.3608842,95518.0,95517.0,0.052323]
[1733848114749,0.02065929,95557.0,95504.0,0.00523538]
[1733848114750,0.3608,95549.0,95539.0,0.052311]
[1733848114963,0.3608,95540.0,95539.0,0.052311]
[1733848115143,0.3608,95540.0,95504.0,0.00523538]
[1733848115348,0.413129,95505.0,95504.0,0.00523538]
[1733848115649,0.41321124,95505.0,95504.0,0.00523538]
[1733848116541,0.36088224,95505.0,95504.0,0.00523538]
[1733848116946,0.35129796,95505.0,95504.0,0.00523538]
[1733848117251,0.3608,95515.0,95514.0,0.052324]
[1733848117444,0.3608,95553.0,95517.0,0.052322]
[1733848117644,0.65137097,95527.0,95518.0,0.29935594]
[1733848117845,0.35696629,95519.0,95518.0,0.29935594]
[1733848118250,0.35708631,95519.0,95518.0,0.29935594]
[1733848119154,0.36092002,95519.0,95518.0,0.29935594]
[1733848120052,0.35938653,95519.0,95504.0,0.00523538]
[1733848120254,0.3608,95505.0,95504.0,0.00523538]
[1733848120463,0.36086,95505.0,95504.0,0.00523538]
[1733848120755,0.36086,95505.0,95500.0,0.1]
[1733848120756,0.052331,95501.0,95500.0,0.05311132]
[1733848120953,0.36036426,95505.0,95500.0,0.05311132]
[1733848121250,0.36036426,95505.0,95504.0,0.00012]
[1733848121643,0.36030426,95505.0,95504.0,0.00012]
[1733848121847,0.3603939,95505.0,95504.0,0.00012]
[1733848122053,8.964e-05,95505.0,95504.0,0.00012]
[1733848122647,0.001,95519.0,95518.0,0.052322]
[1733848122960,0.052309,95543.0,95538.0,0.052311]
[1733848123154,0.3608,95549.0,95523.0,0.3608]
[1733848123358,0.052306,95548.0,95544.0,0.052308]
[1733848123551,0.3608,95550.0,95523.0,0.3608]
[1733848123752,0.052307,95545.0,95523.0,0.3608]
[1733848123959,6e-05,95524.0,95523.0,0.413119]
[1733848124761,8.603e-05,95549.0,95523.0,0.6608]
[1733848125053,8.603e-05,95549.0,95548.0,0.052426]
[1733848125752,8.603e-05,95549.0,95548.0,0.00012]
[1733848126150,8.603e-05,95549.0,95548.0,0.052426]
[1733848126757,8.603e-05,95549.0,95546.0,0.3608]
[1733848127059,6e-05,95547.0,95546.0,0.413107]
[1733848127757,6e-05,95547.0,95542.0,0.4019]
[1733848128058,6e-05,95547.0,95546.0,0.052307]
[1733848128259,6e-05,95547.0,95542.0,0.4019]
[1733848128260,8.603e-05,95549.0,95548.0,0.052306]
[1733848128849,8.603e-05,95549.0,95548.0,0.052266]
[1733848129252,8.603e-05,95549.0,95548.0,0.052386]
[1733848129851,8.603e-05,95549.0,95548.0,0.00012]
[1733848130051,8.603e-05,95549.0,95548.0,0.052426]
[1733848131753,0.052306,95548.0,95547.0,0.04692239]
[1733848131953,0.052308,95544.0,95542.0,0.454209]
[1733848132367,0.052308,95544.0,95542.0,0.24483995]
[1733848132550,0.052308,95544.0,95542.0,0.19253095]
[1733848132856,0.052309,95542.0,95541.0,0.01362646]
[1733848133054,0.052316,95529.0,95526.0,0.052317]
[1733848133256,0.413116,95529.0,95528.0,0.06793043]
[1733848133450,0.413116,95529.0,95528.0,0.05388705]
[1733848133660,0.3608,95529.0,95528.0,0.05388705]
[1733848134059,0.3608,95529.0,95528.0,0.0677466]
[1733848134263,0.36086,95542.0,95528.0,0.0154296]
[1733848134559,6e-05,95542.0,95541.0,0.052429]
[1733848134982,8.603e-05,95549.0,95541.0,0.052429]
[1733848135164,8.603e-05,95549.0,95548.0,0.052306]
[1733848135356,8.603e-05,95549.0,95548.0,0.052426]
[1733848135558,0.36088603,95549.0,95548.0,0.00012]
[1733848136057,0.36088603,95549.0,95533.0,0.052314]
[1733848136058,0.052311,95540.0,95533.0,0.052314]
[1733848136363,0.3608,95534.0,95533.0,0.052314]
[1733848136960,0.36086,95534.0,95533.0,0.052314]
[1733848137160,0.41319103,95549.0,95522.0,0.38128326]
[1733848137161,0.36144604,95549.0,95522.0,0.38128326]
[1733848137469,0.36088603,95549.0,95548.0,0.052426]
[1733848138968,0.36088603,95549.0,95548.0,0.00012]
[1733848139162,0.36088603,95549.0,95548.0,0.06650121]
[1733848139360,0.36088603,95549.0,95548.0,0.052426]
[1733848139665,0.36088603,95549.0,95548.0,0.054426]
[1733848140466,0.00108603,95549.0,95548.0,0.415226]
[1733848140662,0.21186139,95575.0,95548.0,0.415226]